fUSD/lending_fUSD_20251123
["ID","MTS","AMOUNT","RATE_DAILY","PERIOD"]
[394727332,1763919075973,-150.0,0.00038356,2]
[394727333,1763919075983,-500.0,0.00038356,8]
[394727334,1763919075998,-1000.0,0.00038356,2]
[394727335,1763919076010,-500.0,0.00038356,8]
[394727336,1763919076019,-500.0,0.00038356,8]
[394727337,1763919076028,-1000.0,0.00038356,2]
[394727338,1763919076038,-980.58,0.00038356,8]
[394727339,1763919076047,-1000.0,0.00038356,2]
[394727340,1763919076056,-1000.0,0.00038356,2]
[394727341,1763919076066,-150.0,0.00038356,2]
[394727342,1763919076252,-1000.0,0.00038356,2]
[394727343,1763919076284,-749.37,0.00038356,8]
[394727344,1763919076295,-1294.3,0.00038356,8]
[394727345,1763919076304,-1000.0,0.00038356,2]
[394727346,1763919076313,-500.0,0.00038356,8]
[394727347,1763919076322,-150.0,0.00038356,2]
[394727348,1763919076332,-1000.0,0.00038356,2]
[394727349,1763919076342,-500.0,0.00038356,8]
[394727350,1763919076353,-1000.0,0.00038356,2]
[394727351,1763919076364,-500.0,0.00038356,8]
[394727352,1763919076374,-500.0,0.00038356,8]
[394727353,1763919076384,-1000.0,0.00038356,2]
[394727354,1763919076393,-500.0,0.00038356,8]
[394727355,1763919076402,-198.2572427,0.00038356,2]
[394727356,1763919076412,-500.0,0.00038356,8]
[394727357,1763919076422,-1000.0,0.00038356,2]
[394727358,1763919076432,-150.0,0.00038356,2]
[394727359,1763919076441,-1000.0,0.00038356,2]
[394727360,1763919076451,-598.84,0.00038356,8]
[394727361,1763919076460,-1000.0,0.00038356,2]
[394727362,1763919076471,-2037.28,0.00038356,8]
[394727363,1763919076480,-1000.0,0.00038356,2]
[394727364,1763919076489,-1000.0,0.00038356,2]
[394727365,1763919076498,-942.85,0.00038356,8]
[394727366,1763919076507,-500.0,0.00038356,8]
[394727367,1763919076517,-500.0,0.00038356,8]
[394727368,1763919076526,-1000.0,0.00038356,2]
[394727369,1763919076535,-510.50854603,0.00038356,8]
[394727370,1763919076544,-974.29,0.00038356,8]
[394727371,1763919076554,-1000.0,0.00038356,2]
[394727372,1763919076563,-500.0,0.00038356,8]
[394727373,1763919076572,-500.0,0.00038356,8]
[394727374,1763919076582,-500.0,0.00038356,8]
[394727375,1763919076591,-216.206067,0.00038356,8]
[394727376,1763919076600,-168.89410858,0.00038356,2]
[394727377,1763919076609,-500.0,0.00038356,8]
[394727378,1763919076619,-503.64333645,0.00038356,8]
[394727379,1763919076628,-500.0,0.00038356,8]
[394727380,1763919076637,-1543.59,0.00038356,8]
[394727381,1763919076646,-500.0,0.00038356,2]
[394727382,1763919076655,-596.78,0.00038356,8]
[394727383,1763919076664,-500.0,0.00038356,8]
[394727384,1763919076674,-500.0,0.00038356,8]
[394727385,1763919076683,-151.62787,0.00038356,8]
[394727386,1763919076692,-500.0,0.00038356,8]
[394727387,1763919076701,-150.0,0.00038356,2]
[394727388,1763919076710,-3084.91,0.00038356,8]
[394727389,1763919076721,-500.0,0.00038356,8]
[394727390,1763919076731,-910.85,0.00038356,8]
[394727391,1763919076741,-500.0,0.00038356,8]
[394727392,1763919076750,-629.84336812,0.00038356,8]
[394727393,1763919076759,-500.0,0.00038356,8]
[394727394,1763919076769,-520.05,0.00038356,8]
[394727395,1763919076778,-208.39603915,0.00038356,8]
[394727396,1763919076788,-500.0,0.00038356,8]
[394727397,1763919076797,-500.0,0.00038356,8]
[394727398,1763919076807,-500.0,0.00038356,8]
[394727399,1763919076816,-500.0,0.00038356,8]
[394727400,1763919076825,-500.0,0.00038356,8]
[394727401,1763919076835,-500.0,0.00038356,2]
[394727402,1763919076844,-500.0,0.00038356,8]
[394727403,1763919076854,-500.0,0.00038356,8]
[394727404,1763919076863,-150.0,0.00038356,2]
[394727405,1763919076873,-636.14,0.00038356,8]
[394727406,1763919076883,-500.0,0.00038356,2]
[394727407,1763919076892,-500.0,0.00038356,8]
[394727408,1763919076903,-500.0,0.00038356,8]
[394727409,1763919076913,-500.0,0.00038356,8]
[394727410,1763919076924,-461.46957845,0.00038356,8]
[394727411,1763919076934,-2216.79,0.00038356,8]
[394727412,1763919076945,-500.0,0.00038356,2]
[394727413,1763919076956,-500.0,0.00038356,8]
[394727414,1763919076966,-500.0,0.00038356,8]
[394727415,1763919076975,-150.0,0.00038356,2]
[394727416,1763919076984,-1067.23,0.00038356,8]
[394727417,1763919077002,-500.0,0.00038356,2]
[394727418,1763919077012,-500.0,0.00038356,8]
[394727419,1763919077021,-500.0,0.00038356,8]
[394727420,1763919077031,-587.1,0.00038356,8]
[394727421,1763919077043,-640.33,0.00038356,8]
[394727422,1763919077052,-500.0,0.00038356,8]
[394727423,1763919077062,-500.0,0.00038356,8]
[394727424,1763919077072,-742.73,0.00038356,8]
[394727425,1763919077086,-500.0,0.00038356,8]
[394727426,1763919077095,-779.22,0.00038356,8]
[394727427,1763919077104,-500.0,0.00038356,8]
[394727428,1763919077114,-500.0,0.00038356,8]
[394727429,1763919077123,-432.76573652,0.00038356,8]
[394727430,1763919077132,-500.0,0.00038356,8]
[394727431,1763919077142,-500.0,0.00038356,8]
[394727432,1763919077152,-828.12,0.00038356,8]
[394727433,1763919077161,-500.0,0.00038356,8]
[394727434,1763919077171,-1551.88,0.00038356,8]
[394727435,1763919077180,-500.0,0.00038356,8]
[394727436,1763919077189,-500.0,0.00038356,8]
[394727437,1763919077199,-546.16812178,0.00038356,8]
[394727438,1763919077208,-509.84975083,0.00038356,8]
[394727439,1763919077218,-711.2,0.00038356,8]
[394727440,1763919077227,-500.0,0.00038356,8]
[394727441,1763919077236,-500.0,0.00038356,8]
[394727442,1763919077245,-808.34,0.00038356,8]
[394727443,1763919077254,-234.859181,0.00038356,8]
[394727444,1763919077264,-511.96624454,0.00038356,8]
[394727445,1763919077273,-500.0,0.00038356,8]
[394727446,1763919077283,-500.0,0.00038356,8]
[394727447,1763919077293,-500.0,0.00038356,8]
[394727448,1763919077303,-916.56,0.00038356,8]
[394727449,1763919077312,-500.0,0.00038356,8]
[394727450,1763919077322,-500.0,0.00038356,8]
[394727451,1763919077331,-500.0,0.00038356,8]
[394727452,1763919077340,-733.71,0.00038356,8]
[394727453,1763919077349,-500.0,0.00038356,8]
[394727454,1763919077359,-500.0,0.00038356,8]
[394727455,1763919077368,-500.0,0.00038356,8]
[394727456,1763919077377,-500.0,0.00038356,8]
[394727457,1763919077386,-500.0,0.00038356,8]
[394727458,1763919077395,-500.0,0.00038356,8]
[394727459,1763919077404,-500.0,0.00038356,8]
[394727460,1763919077414,-500.0,0.00038356,8]
[394727461,1763919077424,-690.97,0.00038356,8]
[394727462,1763919077434,-1309.47,0.00038356,8]
[394727463,1763919077443,-500.0,0.00038356,8]
[394727464,1763919077453,-500.0,0.00038356,8]
[394727465,1763919077462,-500.0,0.00038356,8]
[394727466,1763919077471,-500.0,0.00038356,8]
[394727467,1763919077480,-500.0,0.00038356,8]
[394727468,1763919077490,-500.0,0.00038356,8]
[394727469,1763919077499,-500.0,0.00038356,8]
[394727470,1763919077508,-500.0,0.00038356,8]
[394727471,1763919077518,-804.67,0.00038356,8]
[394727472,1763919077527,-500.0,0.00038356,8]
[394727473,1763919077536,-500.0,0.00038356,8]
[394727474,1763919077546,-500.0,0.00038356,8]
[394727475,1763919077555,-512.98,0.00038356,8]
[394727476,1763919077564,-500.0,0.00038356,8]
[394727477,1763919077574,-704.79,0.00038356,8]
[394727478,1763919077583,-500.0,0.00038356,8]
[394727479,1763919077593,-500.0,0.00038356,8]
[394727480,1763919077603,-1613.59,0.00038356,8]
[394727481,1763919077612,-500.0,0.00038356,8]
[394727482,1763919077623,-500.0,0.00038356,8]
[394727483,1763919077632,-521.36,0.00038356,8]
[394727484,1763919077642,-500.0,0.00038356,8]
[394727485,1763919077651,-500.0,0.00038356,8]
[394727486,1763919077662,-156.90643025,0.00038356,7]
[394727487,1763919077671,-640.46,0.00038356,8]
[394727488,1763919077681,-618.02,0.00038356,8]
[394727489,1763919077691,-500.0,0.00038356,8]
[394727490,1763919077703,-2235.07,0.00038356,8]
[394727491,1763919077713,-500.87816503,0.00038356,8]
[394727492,1763919077722,-500.0,0.00038356,8]
[394727493,1763919077734,-500.0,0.00038356,8]
[394727494,1763919077744,-871.62,0.00038356,8]
[394727495,1763919077753,-500.0,0.00038356,8]
[394727496,1763919077762,-500.0,0.00038356,8]
[394727497,1763919077771,-409.30008619,0.00038356,8]
[394727498,1763919077780,-500.0,0.00038356,8]
[394727499,1763919077790,-500.0,0.00038356,2]
[394727500,1763919077800,-500.0,0.00038356,8]
[394727501,1763919077809,-818.7,0.00038356,8]
[394727502,1763919077818,-1242.44,0.00038356,8]
[394727503,1763919077827,-727.2,0.00038356,8]
[394727504,1763919077837,-500.0,0.00038356,8]
[394727505,1763919077846,-308.44241462,0.00038356,2]
[394727506,1763919077855,-500.0,0.00038356,8]
[394727507,1763919077864,-1370.31,0.00038356,8]
[394727508,1763919077874,-1545.53,0.00038356,8]
[394727509,1763919077883,-500.0,0.00038356,8]
[394727510,1763919077893,-500.0,0.00038356,8]
[394727511,1763919077903,-500.0,0.00038356,8]
[394727512,1763919077912,-946.34,0.00038356,8]
[394727513,1763919077921,-930.5,0.00038356,8]
[394727514,1763919077931,-500.0,0.00038356,8]
[394727515,1763919077940,-936.96,0.00038356,8]
[394727516,1763919077949,-500.0,0.00038356,8]
[394727517,1763919077958,-500.0,0.00038356,8]
[394727518,1763919077967,-500.0,0.00038356,8]
[394727519,1763919077977,-500.0,0.00038356,8]
[394727520,1763919077985,-500.0,0.00038356,8]
[394727521,1763919077997,-922.05,0.00038356,8]
[394727522,1763919078005,-500.0,0.00038356,8]
[394727523,1763919078013,-500.0,0.00038356,8]
[394727524,1763919078020,-500.0,0.00038356,8]
[394727525,1763919078027,-500.0,0.00038356,8]
[394727526,1763919078036,-519.2,0.00038356,8]
[394727527,1763919078046,-500.0,0.00038356,8]
[394727528,1763919078055,-1094.34,0.00038356,8]
[394727529,1763919078065,-804.19,0.00038356,8]
[394727530,1763919078075,-500.09625428,0.00038356,2]
[394727531,1763919078084,-1379.83,0.00038356,8]
[394727532,1763919078094,-500.0,0.00038356,8]
[394727533,1763919078104,-159.89974586,0.00038356,8]
[394727534,1763919078113,-650.29,0.00038356,8]
[394727535,1763919078123,-502.24504339,0.00038356,8]
[394727536,1763919078133,-500.0,0.00038356,8]
[394727537,1763919078143,-1008.98,0.00038356,8]
[394727538,1763919078153,-500.0,0.00038356,2]
[394727539,1763919078162,-500.0,0.00038356,8]
[394727540,1763919078171,-544.79,0.00038356,8]
[394727541,1763919078180,-1000.0,0.00038356,120]
[394727542,1763919078190,-1000.0,0.00038356,120]
[394727543,1763919078199,-1000.0,0.00038356,120]
[394727544,1763919078208,-1000.0,0.00038356,120]
[394727545,1763919078217,-1000.0,0.00038356,120]
[394727546,1763919078227,-1000.0,0.00038356,120]
[394727547,1763919078237,-1000.0,0.00038356,120]
[394727548,1763919078247,-1000.0,0.00038356,120]
[394727549,1763919078256,-1000.0,0.00038356,120]
[394727550,1763919078266,-1000.0,0.00038356,120]
[394727551,1763919078275,-1000.0,0.00038356,120]
[394727552,1763919078284,-1000.0,0.00038356,120]
[394727553,1763919078294,-1000.0,0.00038356,120]
[394727554,1763919078303,-1000.0,0.00038356,120]
[394727555,1763919078312,-1000.0,0.00038356,120]
[394727556,1763919078321,-1000.0,0.00038356,120]
[394727557,1763919078330,-1000.0,0.00038356,120]
[394727558,1763919078339,-1000.0,0.00038356,120]
[394727559,1763919078349,-1000.0,0.00038356,120]
[394727560,1763919078358,-1000.0,0.00038356,120]
[394727561,1763919078368,-1000.0,0.00038356,120]
[394727562,1763919078377,-1000.0,0.00038356,120]
[394727563,1763919078387,-1000.0,0.00038356,120]
[394727564,1763919078396,-1000.0,0.00038356,120]
[394727565,1763919078406,-1000.0,0.00038356,120]
[394727566,1763919078415,-1000.0,0.00038356,120]
[394727567,1763919078425,-1000.0,0.00038356,120]
[394727568,1763919078435,-1000.0,0.00038356,120]
[394727569,1763919078444,-1000.0,0.00038356,120]
[394727570,1763919078453,-1060.91073761,0.00038356,120]
[394727571,1763919078463,-363.67872419,0.00038356,2]
[394727572,1763919078472,-600.0,0.00038356,30]
[394727573,1763919078482,-204.70240525,0.00038356,5]
[394727574,1763919078491,-150.0,0.00038356,5]
[394727575,1763919078500,-300.0,0.00038357,2]
[394727576,1763919078510,-300.0,0.0003836,2]
[394727577,1763919078519,-300.0,0.00038362,2]
[394727578,1763919078528,-261.8586852,0.00038365,7]
[394727579,1763919078537,-300.0,0.00038367,2]
[394727580,1763919078547,-300.0,0.00038368,2]
[394727581,1763919078556,-300.0,0.00038368,2]
[394727582,1763919078566,-300.0,0.00038372,2]
[394727583,1763919078575,-500.0,0.00038373,5]
[394727584,1763919078587,-503.07122512,0.00038373,5]
[394727585,1763919078595,-500.0,0.00038373,5]
[394727586,1763919078605,-500.0,0.00038373,5]
[394727587,1763919078615,-500.0,0.00038373,5]
[394727588,1763919078624,-501.10903681,0.00038373,5]
[394727589,1763919078633,-300.0,0.00038385,2]
[394727590,1763919078642,-300.0,0.0003839,2]
[394727591,1763919078651,-300.0,0.00038391,2]
[394727592,1763919078660,-300.0,0.00038391,2]
[394727593,1763919078669,-300.0,0.00038392,2]
[394727594,1763919078679,-778.0,0.000384,2]
[394727595,1763919078688,-7513.15,0.000384,30]
[394727596,1763919078697,-300.0,0.00038403,2]
[394727597,1763919078706,-300.0,0.00038405,2]
[394727598,1763919078716,-152.65060389,0.00038413,7]
[394727599,1763919078725,-300.0,0.00038414,2]
[394727600,1763919078734,-300.0,0.00038417,2]
[394727601,1763919078743,-300.0,0.00038417,2]
[394727602,1763919078753,-300.0,0.00038418,2]
[394727603,1763919078762,-300.0,0.00038422,2]
[394727604,1763919078771,-300.0,0.00038422,2]
[394727605,1763919078781,-1376.0,0.00038426,20]
[394727606,1763919078790,-300.0,0.0003843,2]
[394727607,1763919078799,-300.0,0.0003843,2]
[394727608,1763919078809,-2028.13631473,0.00038438,30]
[394727609,1763919078818,-300.0,0.00038442,2]
[394727610,1763919078828,-300.0,0.00038442,2]
[394727611,1763919078838,-300.0,0.00038442,2]
[394727612,1763919078847,-300.0,0.00038452,2]
[394727613,1763919078856,-300.0,0.0003846,2]
[394727614,1763919078867,-300.0,0.0003846,2]
[394727615,1763919078876,-300.0,0.00038462,2]
[394727616,1763919078886,-300.0,0.00038463,2]
[394727617,1763919078895,-300.0,0.00038484,2]
[394727618,1763919078906,-1000.0,0.00038484,7]
[394727619,1763919078916,-300.0,0.00038489,2]
[394727620,1763919078925,-300.0,0.00038489,2]
[394727621,1763919078934,-150.0,0.00038493,2]
[394727622,1763919078943,-156.91420768,0.00038493,2]
[394727623,1763919078955,-150.0,0.00038493,2]
[394727624,1763919078965,-500.0,0.00038493,2]
[394727625,1763919078974,-150.0,0.00038493,2]
[394727626,1763919078983,-500.0,0.00038493,2]
[394727627,1763919078995,-500.0,0.00038493,2]
[394727628,1763919079007,-262.90979851,0.00038493,2]
[394727629,1763919079016,-150.0,0.00038493,2]
[394727630,1763919079025,-150.0,0.00038493,2]
[394727631,1763919079034,-150.0,0.00038493,2]
[394727632,1763919079044,-500.0,0.00038493,2]
[394727633,1763919079055,-500.0,0.00038493,2]
[394727634,1763919079063,-500.0,0.00038493,2]
[394727635,1763919079073,-629.0,0.00038493,2]
[394727636,1763919079083,-500.0,0.00038493,2]
[394727637,1763919079092,-153.73385836,0.00038493,2]
[394727638,1763919079101,-500.0,0.00038493,2]
[394727639,1763919079110,-1376.0,0.00038493,2]
[394727640,1763919079120,-153.75790581,0.00038493,2]
[394727641,1763919079130,-150.0,0.00038493,2]
[394727642,1763919079139,-500.0,0.00038493,2]
[394727643,1763919079149,-150.0,0.00038493,2]
[394727644,1763919079158,-150.0,0.00038493,2]
[394727645,1763919079167,-151.01043138,0.00038493,2]
[394727646,1763919079176,-150.0,0.00038493,2]
[394727647,1763919079186,-150.0,0.00038493,2]
[394727648,1763919079196,-500.0,0.00038493,2]
[394727649,1763919079205,-500.0,0.00038493,2]
[394727650,1763919079214,-500.0,0.00038493,2]
[394727651,1763919079223,-500.0,0.00038493,2]
[394727652,1763919079233,-500.0,0.00038493,2]
[394727653,1763919079424,-300.0,0.00038493,2]
[394727654,1763919079435,-300.0,0.00038495,2]
[394727655,1763919079444,-300.0,0.00038497,2]
[394727656,1763919079453,-300.0,0.00038498,2]
[394727657,1763919079462,-150.0,0.000385,5]
[394727658,1763919079471,-300.0,0.00038501,2]
[394727659,1763919079479,-300.0,0.00038504,2]
[394727660,1763919079488,-300.0,0.00038508,2]
[394727661,1763919079497,-300.0,0.00038508,2]
[394727662,1763919079507,-300.0,0.00038513,2]
[394727663,1763919079516,-300.0,0.00038514,2]
[394727664,1763919079525,-300.0,0.00038517,2]
[394727665,1763919079535,-300.0,0.00038522,2]
[394727666,1763919079544,-300.0,0.00038532,2]
[394727667,1763919079554,-300.0,0.0003854,2]
[394727668,1763919079564,-300.0,0.00038547,2]
[394727669,1763919079573,-355.02,0.00038548,2]
[394727670,1763919079583,-551.04,0.00038548,2]
[394727671,1763919079593,-301.15,0.00038548,2]
[394727672,1763919079603,-169.71,0.00038548,2]
[394727673,1763919079612,-150.0,0.00038548,2]
[394727674,1763919079622,-417.4,0.00038548,2]
[394727675,1763919079631,-227.62,0.00038548,2]
[394727676,1763919079641,-551.04,0.00038548,2]
[394727677,1763919079650,-169.71,0.00038548,2]
[394727678,1763919079659,-355.14,0.00038548,2]
[394727679,1763919079669,-417.4,0.00038548,2]
[394727680,1763919079682,-150.0,0.00038548,2]
[394727681,1763919079698,-150.0,0.00038548,2]
[394727682,1763919079711,-833.94,0.00038548,2]
[394727683,1763919079720,-150.0,0.00038548,2]
[394727684,1763919079730,-150.0,0.00038548,2]
[394727685,1763919079741,-177.6,0.00038548,2]
[394727686,1763919079751,-551.04,0.00038548,2]
[394727687,1763919079759,-169.71,0.00038548,2]
[394727688,1763919079772,-417.4,0.00038548,2]
[394727689,1763919079781,-169.71,0.00038548,2]
[394727690,1763919079792,-551.04,0.00038548,2]
[394727691,1763919079801,-177.6,0.00038548,2]
[394727692,1763919079810,-417.4,0.00038548,2]
[394727693,1763919079820,-150.0,0.00038548,2]
[394727694,1763919079829,-150.0,0.00038548,2]
[394727695,1763919079838,-551.04,0.00038548,2]
[394727696,1763919079847,-417.4,0.00038548,2]
[394727697,1763919079856,-177.6,0.00038548,2]
[394727698,1763919079866,-169.71,0.00038548,2]
[394727699,1763919079875,-169.71,0.00038548,2]
[394727700,1763919079884,-417.4,0.00038548,2]
[394727701,1763919079893,-177.6,0.00038548,2]
[394727702,1763919079903,-551.04,0.00038548,2]
[394727703,1763919079912,-177.6,0.00038548,2]
[394727704,1763919079921,-417.4,0.00038548,2]
[394727705,1763919079930,-150.0,0.00038548,2]
[394727706,1763919079939,-339.35,0.00038548,2]
[394727707,1763919079948,-177.6,0.00038548,2]
[394727708,1763919079958,-169.71,0.00038548,2]
[394727709,1763919079966,-417.4,0.00038548,2]
[394727710,1763919079975,-309.43,0.00038548,2]
[394727711,1763919079985,-169.71,0.00038548,2]
[394727712,1763919079995,-833.26,0.00038548,2]
[394727713,1763919080007,-300.0,0.00038549,2]
[394727714,1763919080017,-300.0,0.00038549,2]
[394727715,1763919080027,-300.0,0.00038555,2]
[394727716,1763919080037,-300.0,0.0003856,2]
[394727717,1763919080047,-300.0,0.00038561,2]
[394727718,1763919080056,-300.0,0.00038566,2]
[394727719,1763919080066,-2028.13631473,0.00038575,30]
[394727720,1763919080077,-300.0,0.00038577,2]
[394727721,1763919080088,-300.0,0.00038589,2]
[394727722,1763919080098,-300.0,0.00038596,2]
[394727723,1763919080107,-300.0,0.00038597,2]
[394727724,1763919080116,-300.0,0.00038601,2]
[394727725,1763919080126,-1000.0,0.00038605,7]
[394727726,1763919080136,-300.0,0.00038611,2]
[394727727,1763919080145,-300.0,0.00038615,2]
[394727728,1763919080154,-300.0,0.00038616,2]
[394727729,1763919080163,-300.0,0.0003862,2]
[394727730,1763919080173,-977.51752428,0.0003862,2]
[394727731,1763919080183,-300.0,0.00038626,2]
[394727732,1763919080193,-1152.04163564,0.00038629,30]
[394727733,1763919080203,-500.0,0.00038629,7]
[394727734,1763919080213,-500.0,0.00038629,7]
[394727735,1763919080222,-500.0,0.00038629,7]
[394727736,1763919080231,-300.0,0.00038629,2]
[394727737,1763919080241,-1067.35,0.00038629,2]
[394727738,1763919080250,-1067.35,0.00038629,2]
[394727739,1763919080260,-1067.35,0.00038629,2]
[394727740,1763919080270,-1067.35,0.00038629,2]
[394727741,1763919080280,-598.14,0.00038629,2]
[394727742,1763919080289,-598.14,0.00038629,2]
[394727743,1763919080299,-598.14,0.00038629,2]
[394727744,1763919080308,-598.14,0.00038629,2]
[394727745,1763919080318,-300.0,0.00038629,10]
[394727746,1763919080328,-300.0,0.00038629,10]
[394727747,1763919080337,-1138.47669916,0.0003863,31]
[394727748,1763919080346,-169.15434185,0.0003863,2]
[394727749,1763919080356,-150.0,0.0003863,2]
[394727750,1763919080366,-500.0,0.0003863,2]
[394727751,1763919080375,-150.0,0.0003863,2]
[394727752,1763919080384,-510.04729565,0.0003863,2]
[394727753,1763919080394,-500.0,0.0003863,2]
[394727754,1763919080404,-168.72452775,0.0003863,2]
[394727755,1763919080414,-150.0,0.0003863,2]
[394727756,1763919080424,-150.0,0.0003863,2]
[394727757,1763919080434,-500.0,0.0003863,2]
[394727758,1763919080444,-500.0,0.0003863,2]
[394727759,1763919080454,-500.0,0.0003863,2]
[394727760,1763919080463,-629.0,0.0003863,2]
[394727761,1763919080475,-500.0,0.0003863,2]
[394727762,1763919080485,-500.0,0.0003863,2]
[394727763,1763919080499,-1376.0,0.0003863,2]
[394727764,1763919080509,-231.71112977,0.0003863,2]
[394727765,1763919080519,-578.08121396,0.0003863,2]
[394727766,1763919080528,-150.0,0.0003863,2]
[394727767,1763919080539,-150.0,0.0003863,2]
[394727768,1763919080550,-200.89295245,0.0003863,2]
[394727769,1763919080561,-500.0,0.0003863,2]
[394727770,1763919080571,-500.0,0.0003863,2]
[394727771,1763919080581,-504.54498225,0.0003863,2]
[394727772,1763919080591,-551.0458032,0.0003863,2]
[394727773,1763919080601,-500.0,0.0003863,2]
[394727774,1763919080612,-500.0,0.0003863,8]
[394727775,1763919080621,-553.21,0.0003863,14]
[394727776,1763919080633,-500.0,0.0003863,8]
[394727777,1763919080644,-507.538495,0.0003863,8]
[394727778,1763919080654,-322.861803,0.0003863,8]
[394727779,1763919080663,-589.663941,0.0003863,8]
[394727780,1763919080674,-500.0,0.0003863,8]
[394727781,1763919080685,-500.0,0.0003863,8]
[394727782,1763919080695,-500.0,0.0003863,8]
[394727783,1763919080705,-354.42889772,0.0003863,8]
[394727784,1763919080714,-585.70242237,0.0003863,8]
[394727785,1763919080723,-300.0,0.0003863,2]
[394727786,1763919080734,-500.0,0.0003863,8]
[394727787,1763919080745,-500.0,0.0003863,8]
[394727788,1763919080755,-500.0,0.0003863,8]
[394727789,1763919080764,-500.0,0.0003863,8]
[394727790,1763919080774,-500.0,0.0003863,8]
[394727791,1763919080784,-500.0,0.0003863,8]
[394727792,1763919080794,-500.0,0.0003863,8]
[394727793,1763919080805,-500.0,0.0003863,8]
[394727794,1763919080814,-500.0,0.0003863,8]
[394727795,1763919080823,-500.0,0.0003863,8]
[394727796,1763919080833,-500.0,0.0003863,8]
[394727797,1763919080842,-500.0,0.0003863,8]
[394727798,1763919080857,-500.0,0.0003863,8]
[394727799,1763919080866,-418.41552464,0.0003863,8]
[394727800,1763919080876,-509.21889636,0.0003863,8]
[394727801,1763919080886,-500.0,0.0003863,8]
[394727802,1763919080895,-500.0,0.0003863,8]
[394727803,1763919080904,-500.0,0.0003863,8]
[394727804,1763919080914,-500.0,0.0003863,8]
[394727805,1763919080924,-500.0,0.0003863,8]
[394727806,1763919080934,-500.0,0.0003863,8]
[394727807,1763919080944,-500.0,0.0003863,8]
[394727808,1763919080954,-500.0,0.0003863,8]
[394727809,1763919080963,-500.0,0.0003863,8]
[394727810,1763919080972,-500.0,0.0003863,8]
[394727811,1763919080982,-500.0,0.0003863,8]
[394727812,1763919080994,-500.0,0.0003863,8]
[394727813,1763919081006,-500.0,0.0003863,8]
[394727814,1763919081015,-500.0,0.0003863,8]
[394727815,1763919081025,-500.0,0.0003863,8]
[394727816,1763919081037,-500.0,0.0003863,8]
[394727817,1763919081047,-500.0,0.0003863,8]
[394727818,1763919081061,-500.0,0.0003863,8]
[394727819,1763919081072,-500.0,0.0003863,8]
[394727820,1763919081089,-762.97,0.0003863,8]
[394727821,1763919081099,-500.0,0.0003863,8]
[394727822,1763919081109,-500.0,0.0003863,8]
[394727823,1763919081119,-500.0,0.0003863,8]
[394727824,1763919081129,-500.0,0.0003863,8]
[394727825,1763919081139,-500.0,0.0003863,8]
[394727826,1763919081149,-500.0,0.0003863,8]
[394727827,1763919081159,-756.55,0.0003863,8]
[394727828,1763919081170,-500.0,0.0003863,8]
[394727829,1763919081182,-500.0,0.0003863,8]
[394727830,1763919081192,-500.0,0.0003863,8]
[394727831,1763919081202,-528.88390356,0.0003863,8]